fUSD/lending_fUSD_20240517
["ID","MTS","AMOUNT","RATE_DAILY","PERIOD"]
[327243630,1715919038067,-4048.07886984,0.00012,2]
[327243631,1715919038077,-19626.96507151,0.00012,2]
[327243632,1715919038086,-1700.0,0.00012,4]
[327243633,1715919038095,-2500.0,0.000121,4]
[327243634,1715919038106,-3400.0,0.000122,4]
[327243635,1715919038116,-256.8087,0.00012228,2]
[327243636,1715919038128,-469.46,0.00012266,2]
[327243637,1715919038140,-150.0,0.00012278,2]
[327243638,1715919038149,-1017.5545,0.000123,2]
[327243639,1715919038158,-1250.0,0.000123,2]
[327243640,1715919038167,-4300.0,0.000123,4]
[327243641,1715919038177,-504.71823711,0.00012328,2]
[327243642,1715919038186,-374.85392407,0.00012328,2]
[327243643,1715919038195,-164.49141189,0.00012328,2]
[327243644,1715919038204,-500.0,0.00012328,2]
[327243645,1715919038214,-507.25145506,0.00012328,2]
[327243646,1715919038224,-512.06590337,0.00012328,2]
[327243647,1715919038233,-511.09562564,0.00012328,2]
[327243648,1715919038242,-508.00333461,0.00012328,2]
[327243649,1715919038251,-508.20277334,0.00012328,2]
[327243650,1715919038260,-514.01136764,0.00012328,2]
[327243651,1715919038270,-524.48138995,0.00012328,2]
[327243652,1715919038280,-500.0,0.00012328,2]
[327243653,1715919038290,-514.38152922,0.00012328,2]
[327243654,1715919038299,-515.39426634,0.00012328,2]
[327243655,1715919038309,-500.0,0.00012328,2]
[327243656,1715919038319,-512.80604066,0.00012328,2]
[327243657,1715919038330,-532.02074385,0.00012328,2]
[327243658,1715919038340,-514.92691216,0.00012328,2]
[327243659,1715919038350,-577.56103157,0.00012328,2]
[327243660,1715919038360,-509.96470577,0.00012328,2]
[327243661,1715919038370,-520.47510792,0.00012328,2]
[327243662,1715919038379,-583.25379292,0.00012328,2]
[327243663,1715919038389,-513.60224363,0.00012328,2]
[327243664,1715919038398,-513.57908856,0.00012328,2]
[327243666,1715919038407,-521.70069488,0.00012328,2]
[327243668,1715919038417,-645.87392991,0.00012328,2]
[327243670,1715919038426,-516.0017276,0.00012328,2]
[327243672,1715919038436,-642.63680619,0.00012328,2]
[327243674,1715919038444,-520.07734206,0.00012328,2]
[327243676,1715919038453,-519.38643031,0.00012328,2]
[327243677,1715919038463,-530.06697444,0.00012328,2]
[327243679,1715919038473,-178.86211704,0.00012328,2]
[327243681,1715919038482,-518.95739006,0.00012328,2]
[327243683,1715919038492,-522.85358062,0.00012328,2]
[327243685,1715919038501,-509.4778789,0.00012328,2]
[327243687,1715919038510,-514.64193476,0.00012328,2]
[327243689,1715919038520,-510.98895401,0.00012328,2]
[327243692,1715919038529,-500.0,0.00012328,2]
[327243695,1715919038539,-257.02137394,0.00012328,2]
[327243697,1715919038548,-509.52878175,0.00012328,2]
[327243699,1715919038558,-518.87554796,0.00012328,2]
[327243701,1715919038566,-508.80773219,0.00012328,2]
[327243703,1715919038575,-523.39806209,0.00012328,2]
[327243705,1715919038589,-517.20290427,0.00012328,2]
[327243707,1715919038599,-514.43525529,0.00012328,2]
[327243709,1715919038608,-572.06,0.00012328,2]
[327243711,1715919038617,-514.5729561,0.00012328,2]
[327243713,1715919038627,-551.36040965,0.00012328,2]
[327243715,1715919038637,-515.99026134,0.00012328,2]
[327243717,1715919038646,-521.52385348,0.00012328,2]
[327243719,1715919038656,-519.14842557,0.00012328,2]
[327243721,1715919038665,-510.63694764,0.00012328,2]
[327243723,1715919038675,-522.01380235,0.00012328,2]
[327243725,1715919038684,-539.17504709,0.00012328,2]
[327243727,1715919038693,-520.01112263,0.00012328,2]
[327243729,1715919038702,-540.06198643,0.00012328,2]
[327243731,1715919038711,-528.96599375,0.00012328,2]
[327243733,1715919038721,-519.32269064,0.00012328,2]
[327243734,1715919038731,-514.54849545,0.00012328,2]
[327243736,1715919038739,-513.38068979,0.00012328,2]
[327243737,1715919038749,-532.20944946,0.00012328,2]
[327243738,1715919038758,-509.89712566,0.00012328,2]
[327243739,1715919038767,-519.09534329,0.00012328,2]
[327243740,1715919038776,-517.11446185,0.00012328,2]
[327243741,1715919038786,-412.1763502,0.00012328,2]
[327243742,1715919038796,-522.80157921,0.00012328,2]
[327243743,1715919038805,-516.97862408,0.00012328,2]
[327243744,1715919038814,-519.93013464,0.00012328,2]
[327243745,1715919038823,-531.46497356,0.00012328,2]
[327243746,1715919038833,-517.11906561,0.00012328,2]
[327243747,1715919038842,-517.04105474,0.00012328,2]
[327243748,1715919038851,-513.34348784,0.00012328,2]
[327243749,1715919038860,-551.57620212,0.00012328,2]
[327243750,1715919038869,-526.29212675,0.00012328,2]
[327243751,1715919038879,-506.1659744,0.00012328,2]
[327243752,1715919038888,-210.27232915,0.00012328,2]
[327243753,1715919038897,-521.34748101,0.00012328,2]
[327243754,1715919038906,-509.26076148,0.00012328,2]
[327243755,1715919038915,-627.90504742,0.00012328,2]
[327243756,1715919038925,-630.90134728,0.00012328,2]
[327243757,1715919038934,-500.0,0.00012328,2]
[327243759,1715919038943,-519.06562124,0.00012328,2]
[327243761,1715919038953,-532.80438733,0.00012328,2]
[327243763,1715919038962,-365.17815613,0.00012328,2]
[327243765,1715919038972,-540.95076839,0.00012328,2]
[327243767,1715919038982,-504.54954274,0.00012328,2]
[327243769,1715919038990,-500.0,0.00012328,2]
[327243771,1715919038999,-532.50644485,0.00012328,2]
[327243773,1715919039009,-516.51832282,0.00012328,2]
[327243775,1715919039017,-159.62098729,0.00012328,2]
[327243777,1715919039027,-516.02351372,0.00012328,2]
[327243779,1715919039036,-523.9086048,0.00012328,2]
[327243781,1715919039046,-482.78737346,0.00012328,2]
[327243783,1715919039056,-533.70961274,0.00012328,2]
[327243785,1715919039065,-576.23523762,0.00012328,2]
[327243787,1715919039075,-535.65689036,0.00012328,2]
[327243789,1715919039084,-519.56603678,0.00012328,2]
[327243791,1715919039094,-522.0,0.00012328,2]
[327243793,1715919039104,-606.47123304,0.00012328,2]
[327243795,1715919039114,-542.00577091,0.00012328,2]
[327243797,1715919039123,-645.87783417,0.00012328,2]
[327243799,1715919039133,-533.69339939,0.00012328,2]
[327243802,1715919039143,-514.98761138,0.00012328,2]
[327243804,1715919039152,-520.61500988,0.00012328,2]
[327243806,1715919039162,-510.6100299,0.00012328,2]
[327243807,1715919039172,-637.59490882,0.00012328,2]
[327243810,1715919039181,-518.74808353,0.00012328,2]
[327243811,1715919039191,-512.05637366,0.00012328,2]
[327243813,1715919039200,-386.82298986,0.00012328,2]
[327243815,1715919039209,-517.00384636,0.00012328,2]
[327243818,1715919039218,-516.12777461,0.00012328,2]
[327243820,1715919039228,-500.0,0.00012328,2]
[327243821,1715919039237,-515.09543453,0.00012328,2]
[327243823,1715919039246,-515.05879747,0.00012328,2]
[327243825,1715919039255,-541.24614512,0.00012328,2]
[327243827,1715919039264,-500.0,0.00012328,2]
[327243829,1715919039273,-512.60390935,0.00012328,2]
[327243831,1715919039282,-516.85094108,0.00012328,2]
[327243833,1715919039291,-514.36227733,0.00012328,2]
[327243835,1715919039300,-513.57906715,0.00012328,2]
[327243837,1715919039309,-500.0,0.00012328,2]
[327243839,1715919039319,-509.84573346,0.00012328,2]
[327243841,1715919039328,-500.0,0.00012328,2]
[327243843,1715919039337,-507.61115311,0.00012328,2]
[327243845,1715919039346,-522.90808602,0.00012328,2]
[327243847,1715919039355,-533.91495603,0.00012328,2]
[327243849,1715919039365,-176.34369566,0.00012328,2]
[327243851,1715919039374,-509.93029123,0.00012328,2]
[327243853,1715919039383,-579.04146328,0.00012328,2]
[327243855,1715919039392,-528.68149873,0.00012328,2]
[327243857,1715919039402,-500.0,0.00012328,2]
[327243859,1715919039411,-521.33710094,0.00012328,2]
[327243861,1715919039420,-2083.33,0.00012328,2]
[327243863,1715919039430,-500.0,0.00012328,2]
[327243865,1715919039439,-500.0,0.00012328,2]
[327243868,1715919039449,-529.31044855,0.00012328,2]
[327243869,1715919039458,-520.09485767,0.00012328,2]
[327243872,1715919039468,-516.15551141,0.00012328,2]
[327243874,1715919039477,-508.24701746,0.00012328,2]
[327243875,1715919039486,-508.49516236,0.00012328,2]
[327243877,1715919039495,-1296.99408667,0.00012348,2]
[327243880,1715919039505,-800.0,0.000124,4]
[327243881,1715919039515,-10934.65564137,0.000124,2]
[327243883,1715919039524,-180.0,0.00012487,2]
[327243886,1715919039533,-252.32718806,0.000125,2]
[327243888,1715919039543,-800.0,0.000125,4]
[327243890,1715919039552,-155.0,0.000125,2]
[327243892,1715919039562,-3713.515,0.00012526,2]
[327243894,1715919039571,-1777.6746,0.00012579,2]
[327243896,1715919039582,-800.0,0.000126,4]
[327243898,1715919039595,-925.0,0.0001261,2]
[327243900,1715919039605,-770.0,0.0001261,2]
[327243902,1715919039615,-500.0,0.00012633,2]
[327243904,1715919039625,-502.57,0.00012633,2]
[327243906,1715919039637,-563.32671923,0.00012633,2]
[327243908,1715919039646,-500.0,0.00012633,2]
[327243910,1715919039655,-500.0,0.00012633,2]
[327243912,1715919039666,-540.58737034,0.00012633,2]
[327243914,1715919039676,-600.4374045,0.00012633,2]
[327243916,1715919039686,-500.0,0.00012633,2]
[327243918,1715919039695,-540.67792107,0.00012633,2]
[327243920,1715919039705,-500.0,0.00012633,2]
[327243922,1715919039714,-500.0,0.00012633,2]
[327243924,1715919039724,-500.0,0.00012633,2]
[327243926,1715919039734,-500.0,0.00012633,2]
[327243928,1715919039743,-500.0,0.00012633,2]
[327243930,1715919039753,-500.0,0.00012633,2]
[327243932,1715919039763,-429.63997166,0.00012633,2]
[327243934,1715919039773,-500.0,0.00012633,2]
[327243936,1715919039782,-500.0,0.00012633,2]
[327243938,1715919039792,-500.0,0.00012633,2]
[327243940,1715919039801,-349.05154993,0.00012633,2]
[327243942,1715919039811,-500.0,0.00012633,2]
[327243944,1715919039820,-3616.008,0.00012634,2]
[327243946,1715919039829,-1598.85772746,0.00012635,2]
[327243948,1715919039839,-2083.33,0.00012677,2]
[327243950,1715919039848,-150.0,0.00012678,2]
[327243952,1715919039857,-150.0,0.00012679,2]
[327243954,1715919039867,-152.27,0.00012679,2]
[327243956,1715919039876,-150.182,0.00012679,2]
[327243958,1715919039886,-1225.0,0.00012679,2]
[327243960,1715919039895,-544.0,0.00012679,2]
[327243961,1715919039905,-164.18,0.00012679,2]
[327243964,1715919039915,-156.0,0.00012679,2]
[327243965,1715919039924,-800.0,0.000127,4]
[327243967,1715919039934,-163.82,0.0001272,2]
[327243969,1715919039943,-500.0,0.00012729,2]
[327243971,1715919039953,-500.0,0.00012729,2]
[327243974,1715919039963,-500.0,0.00012729,2]
[327243976,1715919039974,-500.0,0.00012729,2]
[327243979,1715919039984,-500.0,0.00012729,2]
[327243981,1715919039994,-500.0,0.00012729,2]
[327243983,1715919040004,-500.0,0.00012729,2]
[327243985,1715919040014,-500.0,0.00012729,2]
[327243986,1715919040022,-500.0,0.00012729,2]
[327243988,1715919040030,-500.0,0.00012729,2]
[327243990,1715919040039,-500.0,0.00012729,2]
[327243992,1715919040048,-500.0,0.00012729,2]
[327243995,1715919040057,-500.0,0.00012729,2]
[327243997,1715919040066,-500.0,0.00012729,2]
[327243998,1715919040073,-500.0,0.00012729,2]
[327244000,1715919040081,-500.0,0.00012729,2]
[327244002,1715919040088,-591.76596025,0.00012729,2]
[327244004,1715919040096,-637.21,0.00012729,2]
[327244006,1715919040103,-500.0,0.00012729,2]
[327244008,1715919040113,-500.0,0.00012729,2]
[327244010,1715919040121,-515.53020653,0.00012729,2]
[327244013,1715919040129,-500.0,0.00012729,2]
[327244014,1715919040137,-500.0,0.00012729,2]
[327244016,1715919040146,-609.58663333,0.00012729,2]
[327244018,1715919040156,-555.41878559,0.00012729,2]
[327244021,1715919040166,-500.0,0.00012729,2]
[327244022,1715919040175,-605.11330719,0.00012729,2]
[327244045,1715919040390,-239.24110837,0.00012729,2]
[327244047,1715919040401,-621.89101042,0.00012729,2]
[327244049,1715919040411,-500.0,0.00012729,2]
[327244051,1715919040421,-500.0,0.00012729,2]
[327244053,1715919040431,-547.6360117,0.00012729,2]
[327244055,1715919040441,-500.0,0.00012729,2]
[327244057,1715919040451,-582.22242166,0.00012729,2]
[327244059,1715919040461,-548.55663503,0.00012729,2]
[327244061,1715919040472,-500.0,0.00012729,2]
[327244063,1715919040482,-500.0,0.00012729,2]
[327244065,1715919040491,-500.0,0.00012729,2]
[327244067,1715919040500,-500.0,0.00012729,2]
[327244069,1715919040510,-599.78009032,0.00012729,2]
[327244070,1715919040519,-568.84603375,0.00012729,2]
[327244071,1715919040529,-544.9091646,0.00012729,2]
[327244072,1715919040539,-500.0,0.00012729,2]
[327244073,1715919040549,-544.83469455,0.00012729,2]
[327244074,1715919040559,-500.0,0.00012729,2]
[327244075,1715919040569,-500.0,0.00012729,2]
[327244076,1715919040580,-500.0,0.00012729,2]
[327244077,1715919040594,-261.50675793,0.00012729,2]
[327244078,1715919040603,-500.0,0.00012729,2]
[327244079,1715919040614,-500.0,0.00012729,2]
[327244080,1715919040623,-575.64081846,0.00012729,2]
[327244081,1715919040634,-500.0,0.00012729,2]
[327244082,1715919040643,-500.0,0.00012729,2]
[327244083,1715919040653,-500.0,0.00012729,2]
[327244084,1715919040667,-532.66,0.00012729,2]
[327244085,1715919040677,-500.0,0.00012729,2]
[327244086,1715919040687,-500.0,0.00012729,2]
[327244087,1715919040696,-504.05653149,0.00012729,2]
[327244088,1715919040706,-500.0,0.00012729,2]
[327244090,1715919040716,-500.0,0.00012729,2]
[327244092,1715919040726,-523.49036816,0.00012729,2]
[327244095,1715919040736,-255.52870276,0.00012729,2]
[327244097,1715919040746,-500.0,0.00012729,2]
[327244099,1715919040756,-197.72359303,0.00012729,2]
[327244101,1715919040765,-501.01062952,0.00012729,2]
[327244103,1715919040774,-500.0,0.00012729,2]
[327244105,1715919040783,-500.0,0.00012729,2]
[327244107,1715919040793,-500.0,0.00012729,2]
[327244110,1715919040803,-500.0,0.00012729,2]
[327244112,1715919040812,-500.0,0.00012729,2]
[327244114,1715919040821,-500.0,0.00012729,2]
[327244116,1715919040830,-500.0,0.00012729,2]
[327244117,1715919040840,-500.0,0.00012729,2]
[327244118,1715919040849,-551.76170889,0.00012729,2]
[327244119,1715919040859,-381.2695207,0.00012729,2]
[327244120,1715919040868,-150.0,0.00012729,2]
[327244121,1715919040878,-556.32177796,0.0001273,2]
[327244122,1715919040888,-538.72386985,0.0001273,2]
[327244123,1715919040896,-528.55232347,0.0001273,2]
[327244124,1715919040906,-554.17710594,0.0001273,2]
[327244125,1715919040916,-488.70754581,0.0001273,2]
[327244126,1715919040925,-533.43157347,0.0001273,2]
[327244127,1715919040935,-545.37758039,0.0001273,2]
[327244128,1715919040944,-525.43772178,0.0001273,2]
[327244129,1715919040953,-586.51769055,0.0001273,2]
[327244130,1715919040964,-523.45755214,0.0001273,2]
[327244131,1715919040974,-546.22024584,0.0001273,2]
[327244132,1715919040983,-542.10706585,0.0001273,2]
[327244133,1715919040995,-546.59382002,0.0001273,2]
[327244134,1715919041004,-529.27204947,0.0001273,2]
[327244135,1715919041014,-500.0,0.0001273,2]
[327244136,1715919041023,-150.0,0.0001273,2]
[327244137,1715919041033,-500.0,0.0001273,2]
[327244138,1715919041042,-500.0,0.0001273,2]
[327244139,1715919041052,-500.0,0.0001273,2]
[327244140,1715919041062,-500.0,0.0001273,2]
[327244141,1715919041072,-229.83,0.0001273,2]
[327244142,1715919041081,-533.8614042,0.0001273,2]
[327244143,1715919041091,-527.97838025,0.0001273,2]
[327244144,1715919041100,-524.2758294,0.0001273,2]
[327244145,1715919041109,-475.0,0.0001273,2]
[327244146,1715919041118,-527.88040462,0.0001273,2]
[327244147,1715919041128,-510.09301708,0.0001273,2]
[327244148,1715919041137,-500.0,0.0001273,2]
[327244149,1715919041146,-500.0,0.0001273,2]
[327244150,1715919041156,-500.0,0.0001273,2]
[327244151,1715919041165,-500.0,0.0001273,2]
[327244152,1715919041174,-550.25558807,0.0001273,2]
[327244153,1715919041183,-536.26564739,0.0001273,2]
[327244154,1715919041193,-529.36838981,0.0001273,2]
[327244155,1715919041202,-509.87975843,0.0001273,2]
[327244156,1715919041211,-500.0,0.0001273,2]
[327244157,1715919041220,-173.82364179,0.0001273,2]
[327244158,1715919041230,-528.65723037,0.0001273,2]
[327244159,1715919041239,-470.0,0.0001273,2]
[327244160,1715919041248,-483.02746522,0.0001273,2]
[327244161,1715919041257,-507.93403154,0.0001273,2]
[327244162,1715919041267,-359.66369208,0.0001273,2]
[327244163,1715919041276,-500.0,0.0001273,2]
[327244164,1715919041285,-500.0,0.0001273,2]
[327244165,1715919041295,-500.0,0.0001273,2]
[327244166,1715919041303,-595.65582777,0.0001273,2]
[327244167,1715919041313,-540.41173288,0.0001273,2]
[327244168,1715919041322,-556.07406808,0.0001273,2]
[327244169,1715919041331,-524.28236641,0.0001273,2]
[327244170,1715919041341,-500.0,0.0001273,2]
[327244171,1715919041350,-500.0,0.0001273,2]
[327244172,1715919041359,-500.0,0.0001273,2]
[327244173,1715919041369,-500.0,0.0001273,2]
[327244174,1715919041379,-519.30680054,0.0001273,2]
[327244175,1715919041388,-509.74181678,0.0001273,2]
[327244176,1715919041397,-515.08471675,0.0001273,2]
[327244177,1715919041406,-223.69290006,0.0001273,2]
[327244178,1715919041415,-527.58625645,0.0001273,2]
[327244179,1715919041425,-483.65331827,0.0001273,2]
[327244180,1715919041434,-460.87568313,0.0001273,2]
[327244181,1715919041443,-521.57866603,0.0001273,2]
[327244182,1715919041453,-477.43064726,0.0001273,2]
[327244183,1715919041462,-500.0,0.0001273,2]
[327244184,1715919041473,-565.56389659,0.0001273,2]
[327244185,1715919041482,-543.49760327,0.0001273,2]
[327244186,1715919041491,-597.71917772,0.0001273,2]
[327244187,1715919041500,-500.0,0.0001273,2]
[327244188,1715919041510,-500.0,0.0001273,2]
[327244189,1715919041519,-7500.0,0.00012732,2]
[327244190,1715919041528,-283.221,0.00012732,2]
[327244191,1715919041537,-5914.0,0.00012732,2]
[327244192,1715919041547,-10435.613,0.00012732,2]
[327244193,1715919041556,-300.0,0.00012733,2]
[327244194,1715919041565,-925.0,0.0001274,2]
[327244195,1715919041575,-770.0,0.0001274,2]
[327244196,1715919041589,-326.16560859,0.00012753,2]
[327244197,1715919041598,-239.35,0.00012759,2]
[327244198,1715919041608,-1300.0,0.000128,4]
[327244199,1715919041617,-150.0,0.00012814,2]
[327244200,1715919041628,-6591.8,0.00012828,2]
[327244201,1715919041638,-519.05551524,0.00012832,2]
[327244202,1715919041648,-500.0,0.00012832,2]
[327244203,1715919041660,-523.41534999,0.00012832,2]
[327244204,1715919041669,-500.0,0.00012832,2]
[327244205,1715919041680,-509.87530691,0.00012832,2]
[327244206,1715919041689,-517.57645957,0.00012832,2]
[327244207,1715919041699,-520.79421836,0.00012832,2]
[327244208,1715919041707,-194.94134097,0.00012832,2]
[327244209,1715919041718,-534.83850739,0.00012832,2]
[327244210,1715919041727,-500.0,0.00012832,2]
[327244211,1715919041737,-522.82065828,0.00012832,2]
[327244212,1715919041747,-500.0,0.00012832,2]
[327244213,1715919041757,-500.0,0.00012832,2]
[327244214,1715919041766,-309.45185335,0.00012832,2]
[327244215,1715919041776,-500.0,0.00012832,2]
[327244216,1715919041785,-649.98653971,0.00012832,2]
[327244217,1715919041795,-500.0,0.00012832,2]
[327244218,1715919041804,-500.0,0.00012832,2]
[327244219,1715919041814,-597.47649923,0.00012832,2]
[327244220,1715919041823,-534.71182928,0.00012832,2]
[327244221,1715919041833,-280.51871341,0.00012832,2]
[327244222,1715919041842,-500.0,0.00012832,2]
[327244223,1715919041851,-520.68728406,0.00012832,2]
[327244224,1715919041860,-500.0,0.00012832,2]
[327244225,1715919041870,-587.00555878,0.00012832,2]
[327244226,1715919041879,-530.26125132,0.00012832,2]
[327244227,1715919041888,-500.0,0.00012832,2]
[327244228,1715919041897,-500.0,0.00012832,2]
[327244229,1715919041907,-521.86185105,0.00012832,2]
[327244230,1715919041916,-519.91540075,0.00012832,2]
[327244231,1715919041928,-519.3054434,0.00012832,2]
[327244232,1715919041938,-500.0,0.00012832,2]
[327244233,1715919041948,-500.0,0.00012832,2]
[327244234,1715919041957,-530.51735593,0.00012832,2]
[327244235,1715919041967,-500.0,0.00012832,2]
[327244236,1715919041977,-549.15080412,0.00012832,2]
[327244237,1715919041986,-500.0,0.00012832,2]
[327244238,1715919041995,-500.0,0.00012832,2]
[327244239,1715919042004,-522.74222806,0.00012832,2]
[327244240,1715919042013,-593.96709813,0.00012832,2]
[327244241,1715919042024,-500.0,0.00012832,2]
[327244242,1715919042034,-500.0,0.00012832,2]
[327244243,1715919042043,-516.63041983,0.00012832,2]
[327244244,1715919042052,-500.0,0.00012832,2]
[327244245,1715919042060,-500.0,0.00012832,2]
[327244246,1715919042070,-517.1401534,0.00012832,2]
[327244247,1715919042079,-516.55315325,0.00012832,2]
[327244248,1715919042088,-500.0,0.00012832,2]
[327244249,1715919042098,-518.41243568,0.00012832,2]
[327244250,1715919042107,-460.04766518,0.00012832,2]
[327244251,1715919042116,-531.82582939,0.00012832,2]
[327244252,1715919042125,-500.0,0.00012832,2]
[327244253,1715919042134,-421.25340851,0.00012832,2]
[327244254,1715919042144,-536.5661006,0.00012832,2]
[327244255,1715919042153,-529.93439845,0.00012832,2]
[327244256,1715919042162,-546.73018055,0.00012832,2]
[327244257,1715919042171,-564.09665825,0.00012832,2]
[327244258,1715919042180,-500.0,0.00012832,2]
[327244259,1715919042189,-513.20238482,0.00012832,2]
[327244260,1715919042198,-500.0,0.00012832,2]
[327244261,1715919042207,-532.42559441,0.00012832,2]
[327244262,1715919042217,-558.9170488,0.00012832,2]
[327244263,1715919042227,-526.09602137,0.00012832,2]
[327244264,1715919042236,-500.0,0.00012832,2]
[327244265,1715919042245,-500.0,0.00012832,2]
[327244266,1715919042254,-500.0,0.00012832,2]
[327244267,1715919042264,-416.8214399,0.00012832,2]
[327244268,1715919042273,-611.32256036,0.00012832,2]
[327244269,1715919042283,-500.0,0.00012832,2]
[327244270,1715919042292,-514.9416334,0.00012832,2]
[327244271,1715919042302,-500.0,0.00012832,2]
[327244272,1715919042310,-500.0,0.00012832,2]
[327244273,1715919042320,-526.32226251,0.00012832,2]
[327244274,1715919042329,-517.45550454,0.00012832,2]
[327244275,1715919042339,-515.46293483,0.00012832,2]
[327244276,1715919042348,-529.36211753,0.00012832,2]
[327244277,1715919042357,-531.70605837,0.00012832,2]
[327244278,1715919042366,-500.0,0.00012832,2]
[327244279,1715919042376,-500.0,0.00012832,2]
[327244280,1715919042385,-531.1238074,0.00012832,2]
[327244281,1715919042395,-500.0,0.00012832,2]
[327244282,1715919042404,-500.0,0.00012832,2]
[327244283,1715919042414,-227.46552768,0.00012832,2]
[327244284,1715919042423,-500.0,0.00012832,2]
[327244285,1715919042432,-500.0,0.00012832,2]
[327244286,1715919042442,-500.0,0.00012832,2]
[327244287,1715919042451,-508.52970181,0.00012832,2]
[327244288,1715919042461,-350.43049179,0.00012832,2]
[327244289,1715919042470,-510.33201437,0.00012832,2]
[327244290,1715919042480,-204.34797323,0.00012832,2]
[327244291,1715919042489,-514.83405429,0.00012832,2]
[327244292,1715919042499,-514.1040258,0.00012832,2]
[327244293,1715919042508,-516.39750646,0.00012832,2]
[327244294,1715919042518,-520.19826782,0.00012832,2]
[327244295,1715919042527,-517.6793795,0.00012832,2]
[327244296,1715919042537,-500.0,0.00012832,2]
[327244297,1715919042547,-590.00908345,0.00012832,2]
[327244298,1715919042556,-509.69537679,0.00012832,2]
[327244299,1715919042566,-535.48388277,0.00012832,2]
[327244300,1715919042575,-500.0,0.00012832,2]
[327244301,1715919042588,-516.90141356,0.00012832,2]
[327244302,1715919042597,-519.21835634,0.00012832,2]
[327244303,1715919042607,-518.90766453,0.00012832,2]
[327244304,1715919042616,-520.46284893,0.00012832,2]
[327244305,1715919042627,-512.22380935,0.00012832,2]
[327244306,1715919042636,-516.71942622,0.00012832,2]
[327244307,1715919042646,-500.0,0.00012832,2]
[327244308,1715919042655,-500.0,0.00012832,2]
[327244309,1715919042667,-509.90636524,0.00012832,2]
[327244310,1715919042677,-513.16491065,0.00012832,2]
[327244311,1715919042686,-509.40960282,0.00012832,2]
[327244312,1715919042696,-500.0,0.00012832,2]
[327244313,1715919042705,-508.0374646,0.00012832,2]
[327244314,1715919042714,-522.50880037,0.00012832,2]
[327244315,1715919042724,-513.28432833,0.00012832,2]
[327244316,1715919042734,-213.81074959,0.00012832,2]
[327244317,1715919042743,-508.54652922,0.00012832,2]
[327244318,1715919042752,-229.02177383,0.00012832,2]
[327244319,1715919042772,-284.09598021,0.00012832,2]
[327244320,1715919042781,-512.64682709,0.00012832,2]
[327244321,1715919042790,-521.93399529,0.00012832,2]
[327244322,1715919042799,-509.89707098,0.00012832,2]
[327244323,1715919042808,-514.08908456,0.00012832,2]
[327244324,1715919042817,-512.13376569,0.00012832,2]
[327244325,1715919042826,-173.30980162,0.00012832,2]
[327244326,1715919042836,-508.2375484,0.00012832,2]
[327244327,1715919042845,-511.75108221,0.00012832,2]
[327244328,1715919042855,-500.0,0.00012832,2]
[327244329,1715919042864,-507.3878288,0.00012832,2]
[327244330,1715919042873,-515.51253742,0.00012832,2]
[327244331,1715919042883,-500.0,0.00012832,2]
[327244332,1715919042891,-510.57919825,0.00012832,2]
[327244334,1715919042900,-517.66169911,0.00012832,2]
[327244335,1715919042910,-591.72249061,0.00012832,2]
[327244336,1715919042919,-500.0,0.00012832,2]
[327244337,1715919042929,-525.91877324,0.00012832,2]
[327244339,1715919042939,-500.0,0.00012832,2]
[327244341,1715919042948,-500.0,0.00012832,2]
[327244343,1715919042957,-500.0,0.00012832,2]
[327244345,1715919042967,-500.0,0.00012832,2]
[327244346,1715919042978,-500.0,0.00012832,2]
[327244348,1715919042988,-504.87170701,0.00012832,2]
[327244350,1715919042997,-514.39305597,0.00012832,2]
[327244352,1715919043007,-508.06293469,0.00012832,2]
[327244354,1715919043017,-581.90307809,0.00012832,2]
[327244355,1715919043027,-518.86871893,0.00012832,2]
[327244356,1715919043038,-500.0,0.00012832,2]